bitfinex/quotes_ETHUSD_20230404
["timestamp","ask_amount","ask_price","bid_price","bid_amount"]
[1680574527419,0.0983355,1808.1,1808.0,17.31939465]
[1680574527832,0.0983355,1808.1,1808.0,15.29336376]
[1680574528220,0.0983355,1808.1,1808.0,15.29086712]
[1680574530532,0.0983355,1808.1,1808.0,15.06086712]
[1680574532559,0.06955847,1808.1,1808.0,15.3486374]
[1680574533625,0.0397798,1808.1,1808.0,15.3486374]
[1680574534543,0.01015002,1808.1,1808.0,15.3486374]
[1680574535543,0.11000001,1808.3,1808.0,17.37466829]
[1680574535756,0.11000001,1808.3,1808.2,4.50650773]
[1680574535938,0.11000001,1808.3,1808.2,9.05498773]
[1680574536138,0.11000001,1808.3,1808.2,9.05698773]
[1680574536528,0.11000001,1808.3,1808.2,9.35058741]
[1680574536717,0.11000001,1808.3,1808.2,11.02003252]
[1680574538262,0.11000001,1808.3,1808.2,16.82903252]
[1680574541376,0.11000001,1808.3,1808.2,17.38835162]
[1680574542644,0.08064004,1808.3,1808.2,17.38835162]
[1680574543458,0.08064004,1808.3,1808.2,17.61835162]
[1680574543664,0.05142687,1808.3,1808.2,17.61835162]
[1680574544565,0.02235977,1808.3,1808.2,17.61835162]
[1680574544992,0.02235977,1808.3,1808.2,15.87786607]
[1680574545693,10.85893381,1808.5,1808.2,11.57935162]
[1680574545845,10.85893381,1808.5,1808.4,1.16002045]
[1680574546046,10.85893381,1808.5,1808.4,5.59725819]
[1680574546247,0.81083381,1808.5,1808.4,6.92804263]
[1680574546495,1.49400001,1808.5,1808.4,3.8720635]
[1680574546696,1.72200381,1808.5,1808.4,1.18938652]
[1680574546879,2.18762375,1808.5,1808.4,0.31932302]
[1680574547180,2.18078995,1808.5,1808.4,0.31932302]
[1680574547380,2.18762375,1808.5,1808.4,0.31932302]
[1680574547588,0.99610449,1808.4,1808.3,0.8700635]
[1680574547884,2.37910449,1808.4,1808.3,0.8700635]
[1680574548090,2.37910449,1808.4,1808.2,2.03008395]
[1680574548091,2.38593829,1808.4,1808.2,2.03008395]
[1680574548254,0.692,1808.3,1808.2,0.8700635]
[1680574548677,0.692,1808.3,1808.2,2.03008395]
[1680574548987,0.692,1808.3,1808.2,5.03008395]
[1680574549165,0.692,1808.3,1808.2,5.03208395]
[1680574549761,0.692,1808.3,1808.2,3.8720635]
[1680574549986,0.692,1808.3,1808.2,3.8700635]
[1680574551355,0.692,1808.3,1808.2,5.03008395]
[1680574551703,0.692,1808.3,1808.2,5.30596394]
[1680574551881,0.692,1808.3,1808.2,4.14594349]
[1680574552119,0.692,1808.3,1808.2,4.14394349]
[1680574552474,0.692,1808.3,1808.2,5.52517394]
[1680574552673,0.692,1808.3,1808.2,4.65711044]
[1680574552903,0.692,1808.3,1808.2,4.65511044]
[1680574553076,0.692,1808.3,1808.2,7.42113262]
[1680574553402,0.692,1808.3,1808.2,7.42313262]
[1680574555609,0.692,1808.3,1808.2,7.20192262]
[1680574556407,0.692,1808.3,1808.2,8.07138288]
[1680574556562,0.692,1808.3,1808.2,7.20192262]
[1680574557104,0.692,1808.3,1808.2,8.07139129]
[1680574557655,0.692,1808.3,1808.2,8.29260129]
[1680574558464,0.692,1808.3,1808.2,8.07139129]
[1680574559064,0.692,1808.3,1808.2,7.20192262]
[1680574561103,0.692,1808.3,1808.2,8.07135329]
[1680574561414,0.692,1808.3,1808.2,7.20192262]
[1680574562190,0.692,1808.3,1808.2,8.07133108]
[1680574562514,0.692,1808.3,1808.2,6.91131063]
[1680574562668,0.692,1808.3,1808.2,8.07133108]
[1680574563272,0.692,1808.3,1808.2,4.14528845]
[1680574563505,0.692,1808.3,1808.2,4.14328845]
[1680574563710,0.692,1808.3,1808.2,4.23862499]
[1680574564714,0.692,1808.3,1808.2,5.39864544]
[1680574564890,0.692,1808.3,1808.2,5.40064544]
[1680574565089,0.692,1808.3,1808.2,4.24062499]
[1680574565288,0.692,1808.3,1808.2,4.23862499]
[1680574567218,0.6892122,1808.3,1808.2,4.52923698]
[1680574567777,0.6892122,1808.3,1808.2,5.39855374]
[1680574567984,0.6892122,1808.3,1808.2,4.53123698]
[1680574568318,0.6892122,1808.3,1808.2,7.51646916]
[1680574568480,0.6892122,1808.3,1808.2,8.83018774]
[1680574568681,0.6892122,1808.3,1808.2,8.83018288]
[1680574568981,0.6892122,1808.3,1808.2,7.96088916]
[1680574569190,0.6892122,1808.3,1808.2,8.95883566]
[1680574569517,0.80283381,1808.5,1808.2,10.40886122]
[1680574569827,0.79600001,1808.5,1808.3,5.01648295]
[1680574569995,0.79600001,1808.5,1808.3,5.01848295]
[1680574570321,0.79600001,1808.5,1808.4,0.86925032]
[1680574570821,0.79600001,1808.5,1808.4,4.3583108]
[1680574571023,0.11000001,1808.5,1808.4,4.64908093]
[1680574571206,0.11000001,1808.5,1808.4,8.09146093]
[1680574571388,0.11000001,1808.5,1808.4,8.09346093]
[1680574571584,0.11000001,1808.5,1808.4,9.54348649]
[1680574571913,0.11000001,1808.5,1808.4,7.65108093]
[1680574572787,0.11000001,1808.5,1808.4,7.42989093]
[1680574573122,0.11000001,1808.5,1808.4,7.65108093]
[1680574573631,0.11000001,1808.5,1808.4,8.01658605]
[1680574573926,0.11000001,1808.5,1808.4,7.79539605]
[1680574574387,0.11000001,1808.5,1808.4,8.01658605]
[1680574575520,0.11000001,1808.5,1808.4,8.45896605]
[1680574575832,0.11000001,1808.5,1808.4,8.66442681]
[1680574575997,0.11000001,1808.5,1808.4,7.00255806]
[1680574576401,0.80200001,1808.5,1808.4,4.23653588]
[1680574576613,0.80200001,1808.5,1808.4,4.23453588]
[1680574577488,0.11000001,1808.5,1808.4,1.23453588]
[1680574577688,0.18950001,1808.5,1808.4,1.23453588]
[1680574577889,0.18950001,1808.5,1808.4,0.36550512]
[1680574578114,0.18950001,1808.5,1808.4,1.23453588]
[1680574580221,0.11000001,1808.5,1808.4,1.23453588]
[1680574583188,0.11000001,1808.5,1808.4,1.45572588]
[1680574583624,0.11000001,1808.5,1808.4,4.45572588]
[1680574584532,0.11000001,1808.5,1808.4,7.22174806]
[1680574584729,0.11000001,1808.5,1808.4,8.38376851]
[1680574584896,0.11000001,1808.5,1808.4,7.22374806]
[1680574585230,0.11000001,1808.5,1808.4,7.00255806]
[1680574586691,0.11000001,1808.5,1808.4,4.23653588]
[1680574586908,0.18950001,1808.5,1808.4,0.36550512]
[1680574587106,0.18736755,1808.5,1808.4,0.36750512]
[1680574587333,0.18736755,1808.5,1808.4,0.36550512]
[1680574587692,0.18736755,1808.5,1808.3,0.86903076]
[1680574588032,0.691,1808.4,1808.2,3.87103076]
[1680574588230,0.77883675,1808.4,1808.2,3.86903076]
[1680574588845,0.77883675,1808.4,1808.3,0.33122618]
[1680574589197,2.48921118,1808.4,1808.3,0.33122618]
[1680574589398,3.15278118,1808.4,1808.3,0.33122618]
[1680574589599,3.15278118,1808.4,1808.0,2.02905121]
[1680574589912,0.692,1808.2,1808.0,2.02905121]
[1680574590294,0.692,1808.2,1808.0,0.86903076]
[1680574591399,0.692,1808.3,1808.0,0.86903076]
[1680574593538,0.9132,1808.3,1808.0,0.86903076]
[1680574595135,0.9132,1808.3,1807.9,5.17270151]
[1680574595337,0.09132,1808.2,1807.9,4.01068106]
[1680574595547,0.692,1808.1,1807.9,5.16658132]
[1680574595713,0.692,1808.1,1807.9,3.87515095]
[1680574596035,0.692,1808.1,1807.9,3.86903076]
[1680574596427,0.692,1808.1,1807.9,0.86903076]
[1680574596625,0.91322,1808.1,1807.8,2.1702459]
[1680574596826,0.0692,1808.0,1807.8,1.00410526]
[1680574597010,0.692,1807.9,1807.8,0.86903076]
[1680574597200,0.692,1807.9,1807.7,0.86903076]
[1680574598517,0.692,1807.9,1807.6,5.0351714]
[1680574598730,0.0692,1807.8,1807.6,5.0351714]
[1680574598912,0.0692,1807.8,1807.6,7.80119358]
[1680574599244,0.692,1807.9,1807.7,0.86903076]
[1680574600347,0.692,1807.9,1807.6,7.80119358]
[1680574600828,0.692,1807.9,1807.6,6.64117313]
[1680574601143,0.8304,1807.9,1807.6,6.64117313]
[1680574601510,1.05165,1807.9,1807.6,3.87515095]
[1680574601718,0.8304,1807.9,1807.6,3.87315095]
[1680574601911,0.08304,1807.8,1807.6,3.87315095]
[1680574602518,0.08304,1807.8,1807.6,3.00412019]
[1680574602729,0.08304,1807.8,1807.6,3.00212019]
[1680574603108,0.08304,1807.8,1807.6,3.0]
[1680574603317,0.71526994,1807.9,1807.6,3.0]
[1680574603517,0.71526994,1807.9,1807.6,3.87115095]
[1680574603722,0.71526994,1807.9,1807.7,0.31958483]
[1680574605613,0.71526994,1807.9,1807.5,4.09644095]
[1680574605808,0.71526994,1807.9,1807.5,6.86046313]
[1680574606009,0.71526994,1807.9,1807.5,6.86246313]
[1680574609448,0.71526994,1807.9,1807.5,6.64117313]
[1680574609849,0.93651994,1807.9,1807.5,6.64117313]
[1680574610215,0.71526994,1807.9,1807.5,6.64117313]
[1680574610675,0.685,1807.8,1807.5,3.00612019]
[1680574610812,0.0685,1807.7,1807.5,3.0]
[1680574612019,0.065725,1807.7,1807.5,3.0]
[1680574613968,0.286995,1807.7,1807.4,0.87515095]
[1680574614260,0.286995,1807.7,1807.3,0.14164265]
[1680574614419,0.286995,1807.7,1807.3,2.90566483]
[1680574615529,0.692,1807.5,1807.3,2.90566483]
[1680574615724,0.8297,1807.5,1807.3,2.90566483]
[1680574617477,0.8297,1807.5,1807.3,0.13964265]
[1680574617774,0.8297,1807.5,1807.3,3.13964265]
[1680574618137,0.8297,1807.5,1807.3,3.0]
[1680574618477,1.4936,1807.5,1807.3,3.0]
[1680574618773,1.3559,1807.5,1807.4,0.3207836]
[1680574618984,2.0479,1807.5,1807.4,0.3207836]
[1680574619783,2.0479,1807.5,1807.2,0.1]
[1680574619985,0.686,1807.3,1807.2,0.1]
[1680574620300,0.90732,1807.3,1807.2,0.1]
[1680574620876,0.686,1807.3,1807.2,0.1]
[1680574621483,0.93558994,1807.4,1807.2,0.1]
[1680574622060,0.24458994,1807.4,1807.2,0.1]
[1680574622261,1.46958994,1807.4,1807.2,0.1]
[1680574626803,1.225,1807.4,1807.2,0.1]
[1680574626973,10.7246,1807.5,1807.2,0.1]
[1680574631156,10.9459,1807.5,1807.2,0.1]
[1680574632262,10.9459,1807.5,1807.2,0.96903076]
[1680574632465,10.7246,1807.5,1807.2,0.96903076]
[1680574632663,10.9459,1807.5,1807.2,0.96903076]
[1680574632957,10.7246,1807.5,1807.2,0.1]
[1680574633143,10.72225039,1807.5,1807.2,0.1]
[1680574633526,10.94355039,1807.5,1807.3,0.32165564]
[1680574634257,10.72225039,1807.5,1807.3,0.32165564]
[1680574634763,10.94355039,1807.5,1807.3,0.32165564]
[1680574635162,10.72225039,1807.5,1807.3,0.32165564]
[1680574636272,10.94355039,1807.5,1807.3,0.32165564]
[1680574636995,0.002,1807.5,1807.3,3.21715848]
[1680574637141,5.3862838,1807.7,1807.3,3.21715848]
[1680574637142,4.9389,1807.7,1807.3,3.21715848]
[1680574637489,0.2301038,1807.8,1807.4,0.32171585]
[1680574637643,0.22127,1807.8,1807.4,0.32171585]
[1680574637843,16.51385,1807.9,1807.4,3.30904803]
[1680574638076,16.51385,1807.9,1807.4,3.08773803]
[1680574638680,16.51385,1807.9,1807.4,4.18219898]
[1680574638882,16.2926,1807.9,1807.5,0.4182199]
[1680574639574,16.51385,1807.9,1807.5,0.4182199]
[1680574642280,16.51385,1807.9,1807.5,1.28725066]
[1680574642661,16.2926,1807.9,1807.5,1.28725066]
[1680574643240,16.51385,1807.9,1807.5,1.28725066]
[1680574644079,16.51385,1807.9,1807.5,4.05327284]
[1680574644282,16.51385,1807.9,1807.5,4.05739303]
[1680574644760,16.51385,1807.9,1807.5,3.63917313]
[1680574648765,16.95635,1807.9,1807.6,0.32188082]
[1680574650405,16.51385,1807.9,1807.6,3.087903]
[1680574650699,0.002,1807.9,1807.7,2.76602218]
[1680574651002,0.0068338,1808.0,1807.7,2.76602218]
[1680574651003,0.22124,1808.0,1807.7,3.16171556]
[1680574651174,16.5704638,1808.1,1807.7,3.16171556]
[1680574653158,16.56797003,1808.1,1807.7,3.16171556]
[1680574653472,16.56113623,1808.1,1807.7,3.16583575]
[1680574655087,16.33990623,1808.1,1807.7,3.16583575]
[1680574655607,0.002,1808.1,1807.8,1.18561434]
[1680574655763,0.02326994,1808.2,1807.8,4.17501671]
[1680574656105,0.02326994,1808.2,1807.8,4.17701671]
[1680574656695,0.02326994,1808.2,1807.9,2.76602218]
[1680574656898,0.02326994,1808.2,1808.0,0.27660222]
[1680574657098,0.02326994,1808.2,1808.0,3.0426244]
[1680574657299,0.02326994,1808.2,1808.0,3.04474459]
[1680574657511,0.02326994,1808.2,1808.0,3.04674459]
[1680574658507,0.002,1808.3,1808.0,3.04674459]
[1680574658708,5.02199,1808.4,1808.0,3.04474459]
[1680574659073,5.02199,1808.4,1808.0,3.0426244]
[1680574660306,5.02199,1808.4,1808.0,3.04474459]
[1680574660619,5.46437,1808.4,1808.0,2.76814237]
[1680574660827,5.46437,1808.4,1808.0,2.76602218]
[1680574661163,5.02199,1808.4,1808.0,2.76602218]
[1680574661872,5.46437,1808.4,1808.0,2.76602218]
[1680574662069,6.68137,1808.4,1808.0,2.76602218]
[1680574662530,6.70463994,1808.4,1808.0,2.76602218]
[1680574663575,6.70463994,1808.4,1808.1,0.37373342]
[1680574667866,6.70463994,1808.4,1807.9,0.00412019]
[1680574668018,6.70463994,1808.4,1807.8,3.00412019]
[1680574668217,6.70463994,1808.4,1807.8,5.77014237]
[1680574668419,6.70463994,1808.4,1807.8,5.77214237]
[1680574670235,12.51363994,1808.4,1807.8,3.00612019]
[1680574670437,12.51363994,1808.4,1807.8,3.00412019]
[1680574672052,1.225,1808.3,1807.8,3.00412019]
[1680574672260,0.22121,1808.2,1807.8,3.00412019]
[1680574675572,1.44621,1808.3,1807.8,3.00412019]
[1680574678138,1.44412468,1808.3,1807.8,3.00212019]
[1680574678341,0.22121,1808.3,1807.8,3.00412019]
[1680574678639,0.22121,1808.3,1807.9,0.37527154]
[1680574679423,0.66361,1808.3,1807.9,0.37527154]
[1680574679794,0.22121,1808.3,1807.9,0.37527154]
[1680574683235,6.70364994,1808.4,1807.9,0.37527154]
[1680574683452,0.2212,1808.3,1807.9,0.37527154]
[1680574683791,6.48244994,1808.4,1807.9,0.37527154]
[1680574684009,0.2212,1808.3,1807.9,0.37527154]
[1680574687170,0.9112,1808.3,1807.9,0.37527154]
[1680574688144,0.69,1808.3,1807.9,0.37527154]
[1680574688454,0.9112,1808.3,1807.9,0.37527154]
[1680574689244,0.9112,1808.3,1807.9,0.37739173]
[1680574689827,0.9112,1808.3,1807.9,0.37527154]
[1680574690743,0.9112,1808.3,1807.9,0.37739173]
[1680574691315,0.9112,1808.3,1807.9,0.37527154]
[1680574691516,0.9112,1808.3,1807.9,0.37739173]
[1680574692318,0.9112,1808.3,1807.9,0.37527154]
[1680574692518,0.9112,1808.3,1807.9,0.37739173]
[1680574693032,0.9112,1808.3,1807.9,0.37939173]
[1680574694676,0.9112,1808.3,1807.9,1.24842249]
[1680574695226,0.2212,1808.3,1807.9,1.24842249]
[1680574699689,0.2212,1808.3,1807.9,1.24842249]
[1680574700393,5.51006994,1808.4,1807.9,1.24842249]
[1680574700532,0.93245994,1808.4,1808.0,0.86903076]
[1680574700734,0.93045994,1808.4,1808.0,0.86903076]
[1680574701767,0.93045994,1808.4,1808.1,0.2900768]
[1680574702153,0.24445994,1808.4,1808.1,0.2900768]
[1680574707199,0.10986755,1808.5,1808.4,0.00388575]
[1680574707404,0.10786755,1808.5,1808.4,4.32893869]
[1680574707549,0.10786755,1808.5,1808.4,4.8778346]
[1680574707751,0.10786755,1808.5,1808.4,5.17094448]
[1680574707949,0.10786755,1808.5,1808.4,9.71915429]
[1680574708781,0.07913146,1808.5,1808.4,10.00651515]
[1680574709097,0.07913146,1808.5,1808.4,9.71161973]
[1680574709710,0.05083483,1808.5,1808.4,9.71161973]
[1680574710702,0.02264704,1808.5,1808.4,9.71161973]
[1680574711592,0.11000001,1808.8,1808.4,9.71161973]
[1680574711793,0.11000001,1808.8,1808.5,6.73718415]
[1680574711992,0.11000001,1808.8,1808.6,0.66349]
[1680574712191,0.11000001,1808.8,1808.7,2.98717218]
[1680574712604,0.11000001,1808.8,1808.7,3.26346996]
[1680574735448,0.10646894,1808.8,1808.7,3.26346996]
[1680574735654,0.10646894,1808.8,1808.7,4.18610896]
[1680574735804,0.05646894,1808.8,1808.7,4.18610896]
[1680574746164,0.05646894,1808.8,1808.7,3.96495896]
[1680574753452,0.05646894,1808.8,1808.7,3.04231996]
[1680574754773,0.05646894,1808.8,1808.7,0.27629778]
[1680574758290,0.05419588,1808.8,1808.7,0.27629778]
[1680574762120,0.05419588,1808.8,1808.7,3.26346996]
[1680574762756,0.05419588,1808.8,1808.7,3.04231996]
[1680574762956,0.05419588,1808.8,1808.7,4.09879189]
[1680574763155,0.05419588,1808.8,1808.7,4.31994189]
[1680574763841,0.05419588,1808.8,1808.7,4.09879189]
[1680574765389,0.05419588,1808.8,1808.7,4.31994189]
[1680574765614,0.05419588,1808.8,1808.7,4.96711078]
[1680574765825,0.05419588,1808.8,1808.7,4.31994189]
[1680574766023,0.05419588,1808.8,1808.7,4.09879189]
[1680574768695,0.05419588,1808.8,1808.7,4.31994189]
[1680574768903,0.05419588,1808.8,1808.7,4.09879189]
[1680574771269,0.05419588,1808.8,1808.7,5.18826078]
[1680574771470,0.05419588,1808.8,1808.7,5.19026078]
[1680574771724,0.05419588,1808.8,1808.7,4.32194189]
[1680574771908,0.05419588,1808.8,1808.7,4.31994189]
[1680574772272,0.05419588,1808.8,1808.7,5.18826078]
[1680574772472,0.05419588,1808.8,1808.7,4.96911078]
[1680574772809,0.05419588,1808.8,1808.7,6.79058123]
[1680574773008,0.05419588,1808.8,1808.7,8.92426234]
[1680574773370,0.05419588,1808.8,1808.7,9.79417241]
[1680574773578,0.02498093,1808.8,1808.7,9.79417241]
[1680574774807,0.11000001,1809.0,1808.7,9.79417241]
[1680574775008,0.11000001,1809.0,1808.9,2.76602218]
[1680574775189,0.11000001,1809.0,1808.9,5.98714218]
[1680574775394,0.11000001,1809.0,1808.9,5.76802218]
[1680574775564,0.11000001,1809.0,1808.9,6.05752398]
[1680574775903,0.11000001,1809.0,1808.9,3.05752398]
[1680574776067,0.11000001,1809.0,1808.9,3.05552398]
[1680574776777,0.11000001,1809.0,1808.9,0.2895018]
[1680574777617,0.11000001,1809.0,1808.8,0.002]
[1680574777861,0.58255657,1809.3,1808.9,2.76602218]
[1680574778051,0.98083348,1809.4,1809.2,0.8692387]
[1680574778052,0.11000001,1809.4,1809.2,0.8692387]
[1680574778203,0.11000001,1809.4,1809.3,3.72214908]
[1680574778407,0.11000001,1809.5,1809.3,4.38536908]
[1680574778806,0.11000001,1809.5,1809.4,0.69]
[1680574779002,0.11000001,1809.5,1809.4,4.18461909]
[1680574779407,0.11000001,1809.5,1809.4,4.18873928]
[1680574779941,0.11000001,1809.5,1809.4,4.63086928]
[1680574781781,0.11000001,1809.5,1809.4,4.91021831]
[1680574782113,0.11000001,1809.5,1809.4,8.59821831]
[1680574782441,0.11000001,1809.5,1809.4,8.59609812]
[1680574782744,0.11000001,1809.5,1809.4,14.63709812]
[1680574782945,0.11000001,1809.5,1809.4,14.63509812]
[1680574783245,0.11000001,1809.5,1809.4,14.63921831]
[1680574787163,0.11000001,1809.5,1809.4,13.26121831]
[1680574787459,0.11000001,1809.5,1809.4,14.48221831]
[1680574788842,0.11000001,1809.5,1809.4,8.67321831]
[1680574789049,0.11000001,1809.5,1809.4,8.44321831]
[1680574791429,0.11000001,1809.5,1809.4,7.22221831]
[1680574791634,0.11000001,1809.5,1809.4,6.2725514]
[1680574791828,0.11000001,1809.5,1809.4,6.7146814]
[1680574799659,0.07852065,1809.5,1809.4,6.71056121]
[1680574800678,0.04718438,1809.5,1809.4,6.71056121]
[1680574801683,0.01599055,1809.5,1809.4,6.71056121]
[1680574801920,0.01599055,1809.5,1809.4,8.06509219]
[1680574802777,0.11000001,1809.6,1809.4,8.06509219]
[1680574802978,0.11000001,1809.6,1809.5,6.42918218]
[1680574803175,0.11000001,1809.6,1809.5,6.43118218]
[1680574803782,0.08292425,1809.6,1809.5,6.67088777]
[1680574803982,0.08292425,1809.6,1809.5,7.50136455]
[1680574805014,0.05595262,1809.6,1809.5,7.50136455]
[1680574805894,0.02684574,1809.6,1809.5,7.50136455]
[1680574806825,0.03868141,1809.7,1809.5,7.50136455]
[1680574806970,0.03868141,1809.7,1809.6,0.75013646]
[1680574807319,0.03868141,1809.7,1809.6,4.17927864]
[1680574807544,0.03868141,1809.7,1809.6,12.16137864]
[1680574807674,0.03868141,1809.7,1809.6,23.00795864]
[1680574808021,0.11000001,1809.9,1809.6,34.30482619]
[1680574808223,0.11000001,1809.9,1809.8,3.98302218]
[1680574808365,0.11000001,1809.9,1809.8,5.53013218]
[1680574808571,0.11000001,1809.9,1809.8,8.53213218]
[1680574809826,0.11000001,1809.9,1809.8,7.31513218]
[1680574810128,0.11000001,1809.9,1809.8,8.49774598]
[1680574813676,0.11000001,1809.9,1809.8,8.81173296]
[1680574814621,0.11000001,1809.9,1809.8,9.35587232]
[1680574815414,0.007,1810.3,1809.8,19.92387232]
[1680574815654,0.11000001,1810.6,1810.2,2.76602218]
[1680574815852,0.11000001,1810.6,1810.3,3.22095]
[1680574816160,0.11000001,1810.6,1810.4,2.76602218]
[1680574816463,0.11700001,1810.6,1810.4,2.98696218]
[1680574816764,0.11000001,1810.6,1810.4,2.98696218]
[1680574819376,0.11000001,1810.6,1810.4,3.42885218]
[1680574820344,0.11000001,1810.6,1810.4,2.76602218]
[1680574821118,0.11000001,1810.6,1810.4,2.98696218]
[1680574822454,0.11700001,1810.6,1810.4,2.76602218]
[1680574822631,0.11700001,1810.6,1810.5,2.76602218]
[1680574822835,0.11000001,1810.6,1810.5,3.42881218]
[1680574823052,0.11000001,1810.6,1810.5,6.42881218]
[1680574823256,0.11000001,1810.6,1810.5,6.43081218]
[1680574823427,0.11000001,1810.6,1810.5,7.22677612]
[1680574826259,0.11000001,1810.6,1810.5,3.002]
[1680574826419,0.11000001,1810.6,1810.2,5.48198019]
[1680574826420,0.11000001,1810.6,1810.3,3.22294]
[1680574826623,0.11000001,1810.6,1810.4,2.98696218]
[1680574828651,0.11000001,1810.6,1810.5,0.33903851]
[1680574828853,0.11000001,1810.6,1810.5,0.55996851]
[1680574830194,0.11000001,1810.6,1810.5,0.33903851]
[1680574830490,0.11000001,1810.6,1810.5,0.55996851]
[1680574831589,0.11000001,1810.6,1810.5,0.33903851]
[1680574835492,0.11700001,1810.6,1810.5,0.33903851]
[1680574835800,0.11000001,1810.6,1810.2,4.81696]
[1680574836088,0.11000001,1810.6,1810.3,2.76602218]
[1680574836243,0.11700001,1810.6,1810.3,2.76602218]
[1680574836448,0.11000001,1810.6,1810.3,2.76602218]
[1680574837899,0.11700001,1810.6,1810.3,2.76602218]
[1680574838458,0.11000001,1810.6,1810.3,2.76602218]
[1680574838763,0.11000001,1810.6,1810.3,3.5263204]
[1680574838764,0.11110005,1810.6,1810.3,3.5263204]
[1680574839007,0.10610005,1810.6,1810.3,3.5243204]
[1680574841671,0.10610005,1810.6,1810.2,0.00612019]
[1680574841934,1.32710005,1810.6,1810.2,2.76602218]
[1680574842085,1.32710005,1810.6,1810.2,2.77014237]
[1680574843701,1.32710005,1810.6,1810.3,0.32942077]
[1680574845723,1.54802005,1810.6,1810.3,0.32942077]
[1680574846307,1.32710005,1810.6,1810.3,0.32942077]
[1680574846670,1.54802005,1810.6,1810.3,0.32942077]
[1680574846872,1.32710005,1810.6,1810.3,0.32942077]
[1680574847706,1.54802005,1810.6,1810.3,0.32942077]
[1680574848091,1.32710005,1810.6,1810.3,0.32942077]
[1680574848864,1.54802005,1810.6,1810.3,0.32942077]
[1680574849113,1.32710005,1810.6,1810.3,0.32942077]
[1680574855335,0.10610005,1810.6,1810.3,0.32942077]
[1680574877652,0.10610005,1810.6,1810.3,0.32642077]
[1680574877857,1.86650978,1810.6,1810.3,0.32642077]
[1680574878027,0.68665662,1810.6,1810.3,0.32642077]
[1680574884940,0.688,1810.4,1810.3,0.32642077]
[1680574885861,0.688,1810.4,1810.1,8.73730303]
[1680574886562,0.688,1810.4,1810.1,8.95828303]
[1680574886765,0.688,1810.4,1810.2,0.33396686]
[1680574887471,0.75912699,1810.4,1810.2,0.33396686]
[1680574887652,0.75912699,1810.4,1810.1,8.73730303]
[1680574887843,0.75912699,1810.4,1810.1,8.73523457]
[1680574888038,0.688,1810.4,1810.1,8.73523457]
[1680574888238,0.688,1810.4,1810.1,10.1151995]
[1680574888470,0.688,1810.4,1810.1,8.73523457]
[1680574888765,0.688,1810.4,1810.2,0.33396686]
[1680574889731,0.688,1810.4,1810.1,8.73523457]
[1680574891264,0.78191999,1810.4,1810.1,8.73523457]
[1680574891469,0.09391999,1810.4,1810.1,8.73523457]
[1680574892484,0.02326994,1810.5,1810.1,8.73523457]
[1680574892981,0.24419994,1810.5,1810.1,3.86913457]
[1680574893178,0.03026994,1810.5,1810.1,0.86920303]
[1680574893543,0.25119994,1810.5,1810.1,0.86920303]
[1680574893772,0.007,1810.5,1810.2,4.29812521]
[1680574893972,0.11310005,1810.6,1810.3,3.0]
[1680574894280,0.11310005,1810.6,1810.3,3.22095]
[1680574894646,0.11310005,1810.6,1810.3,4.09015303]
[1680574897049,0.11310005,1810.6,1810.3,3.22095]
[1680574897450,0.11310005,1810.6,1810.3,4.09015303]
[1680574897753,0.11310005,1810.6,1810.3,3.22095]
[1680574899187,0.13636999,1810.6,1810.3,3.22095]
[1680574901511,0.35728999,1810.6,1810.3,3.0]
[1680574901809,0.13636999,1810.6,1810.2,5.55740303]
[1680574902210,0.82436999,1810.6,1810.2,5.55740303]
[1680574903803,0.82436999,1810.6,1810.3,0.30776171]
[1680574904011,0.82436999,1810.6,1810.1,1.15898493]
[1680574904012,6.85428999,1810.6,1810.1,1.15898493]
[1680574904239,1.376,1810.2,1810.0,0.86845168]
[1680574904537,1.373,1810.1,1809.8,0.002]
[1680574904747,3.45402218,1810.2,1809.6,0.86845168]
[1680574904748,0.685,1809.9,1809.6,0.86845168]
[1680574904890,6.6273,1810.0,1809.6,0.86845168]
[1680574904891,6.492,1810.0,1809.6,0.86845168]
[1680574905088,6.492,1810.0,1809.5,0.86845168]
[1680574905089,0.22101,1809.8,1809.5,0.86845168]
[1680574905438,1.416342,1809.8,1809.4,0.86845168]
[1680574905651,1.35004,1809.8,1809.3,2.47323461]
[1680574905809,1.35004,1809.8,1809.3,1.31624968]
[1680574905988,0.688,1809.7,1809.3,1.31624968]
[1680574906302,0.73193,1809.6,1809.3,1.31224968]
[1680574906509,0.73193,1809.6,1809.3,1.31024968]
[1680574907189,0.73193,1809.6,1809.3,0.441798]
[1680574907936,0.75519994,1809.6,1809.3,0.441798]
[1680574908144,0.07551999,1809.5,1809.3,0.441798]
[1680574908353,0.29657999,1809.5,1809.3,0.441798]
[1680574909680,0.02326994,1809.6,1809.3,0.441798]
[1680574909819,0.24431994,1809.6,1809.3,0.441798]
[1680574910189,0.24431994,1809.6,1809.2,0.1]
[1680574910430,0.24431994,1809.6,1809.2,2.86602218]
[1680574910597,0.24431994,1809.6,1809.2,3.55006957]
[1680574910944,0.24430994,1809.6,1809.2,3.55006957]
[1680574911694,0.24430994,1809.6,1809.3,0.4660821]
[1680574924938,0.68638994,1809.6,1809.3,0.4660821]
[1680574925183,0.002,1809.8,1809.4,3.98802218]
[1680574925506,10.8665,1809.9,1809.4,3.98802218]
[1680574925641,10.8665,1809.9,1809.4,2.98708218]
[1680574925836,11.0875,1809.9,1809.5,0.35314382]
[1680574926051,11.0805,1809.9,1809.5,3.119166]
[1680574926339,11.0875,1809.9,1809.5,3.119166]
[1680574927188,10.8665,1809.9,1809.5,3.119166]
[1680574927506,11.0805,1809.9,1809.5,3.119166]
[1680574929270,10.8595,1809.9,1809.5,3.119166]
[1680574929470,11.0805,1809.9,1809.5,3.119166]
[1680574930072,10.8595,1809.9,1809.5,3.119166]
[1680574930272,10.8595,1809.9,1809.5,3.54283485]
[1680574930473,10.8595,1809.9,1809.5,3.76388485]
[1680574930918,10.8595,1809.9,1809.5,3.76988485]
[1680574931525,0.002,1809.9,1809.6,2.76602218]
[1680574931679,0.24425994,1810.0,1809.6,2.76602218]
[1680574931878,0.02326994,1810.0,1809.6,2.76602218]
[1680574932172,0.02326994,1810.0,1809.6,7.89571067]
[1680574932378,0.02326994,1810.0,1809.6,7.89771067]
[1680574933725,0.02326994,1810.0,1809.7,0.29765329]
[1680574934024,0.02326994,1810.0,1809.7,3.06367547]
[1680574934793,0.24425994,1810.0,1809.7,3.06367547]
[1680574935731,0.75486193,1810.0,1809.7,0.29765329]
[1680574935877,0.68623994,1810.0,1809.7,0.29765329]
[1680574936609,15.93533994,1810.0,1809.7,0.29765329]
[1680574936777,15.93733994,1810.0,1809.4,7.8521]
[1680574936978,15.93733994,1810.0,1809.5,2.76602218]